fUSD/lending_fUSD_20250504
["ID","MTS","AMOUNT","RATE_DAILY","PERIOD"]
[359837729,1746364243089,-486.31580339,0.00019773,2]
[359837731,1746364243098,-545.87385494,0.00019773,2]
[359837733,1746364243107,-500.0,0.00019773,2]
[359837735,1746364243117,-500.0,0.00019773,2]
[359837737,1746364243126,-160.031296,0.00019773,2]
[359837739,1746364243135,-359.79515288,0.00019773,2]
[359837741,1746364243145,-500.99256753,0.00019773,2]
[359837743,1746364243155,-500.0,0.00019773,2]
[359837744,1746364243164,-158.62819397,0.00019773,2]
[359837747,1746364243174,-500.0,0.00019773,2]
[359837748,1746364243183,-500.0,0.00019773,2]
[359837750,1746364243193,-500.0,0.00019773,2]
[359837752,1746364243202,-500.0,0.00019773,2]
[359837754,1746364243212,-558.63313616,0.00019773,2]
[359837756,1746364243221,-500.0,0.00019773,2]
[359837758,1746364243231,-500.0,0.00019773,2]
[359837760,1746364243240,-500.0,0.00019773,2]
[359837762,1746364243250,-500.0,0.00019779,2]
[359837764,1746364243260,-450.0,0.0001978,2]
[359837766,1746364243269,-450.0,0.0001978,2]
[359837768,1746364243279,-450.0,0.0001978,2]
[359837770,1746364243288,-450.0,0.0001978,2]
[359837772,1746364243298,-450.0,0.0001978,2]
[359837774,1746364243308,-450.0,0.0001978,2]
[359837777,1746364243318,-477.46,0.0001978,2]
[359837778,1746364243327,-225.11,0.0001978,2]
[359837781,1746364243341,-450.0,0.0001978,2]
[359837783,1746364243351,-450.0,0.0001978,2]
[359837785,1746364243360,-450.0,0.0001978,2]
[359837787,1746364243369,-450.0,0.0001978,2]
[359837789,1746364243378,-450.0,0.0001978,2]
[359837791,1746364243388,-502.05,0.0001978,2]
[359837793,1746364243399,-450.0,0.0001978,2]
[359837795,1746364243408,-450.0,0.0001978,2]
[359837797,1746364243418,-450.0,0.0001978,2]
[359837799,1746364243427,-450.0,0.0001978,2]
[359837802,1746364243437,-528.73,0.0001978,2]
[359837804,1746364243446,-509.74,0.0001978,2]
[359837806,1746364243456,-450.0,0.0001978,2]
[359837808,1746364243465,-450.0,0.0001978,2]
[359837810,1746364243475,-450.0,0.0001978,2]
[359837812,1746364243484,-573.8,0.0001978,2]
[359837814,1746364243494,-450.0,0.0001978,2]
[359837816,1746364243504,-450.0,0.0001978,2]
[359837817,1746364243513,-213.91,0.0001978,2]
[359837819,1746364243523,-450.0,0.0001978,2]
[359837822,1746364243534,-450.0,0.0001978,2]
[359837823,1746364243545,-450.0,0.0001978,2]
[359837825,1746364243554,-543.52,0.0001978,2]
[359837827,1746364243565,-450.0,0.0001978,2]
[359837829,1746364243575,-450.0,0.0001978,2]
[359837831,1746364243584,-218.19,0.0001978,2]
[359837833,1746364243594,-1495.51,0.0001978,2]
[359837836,1746364243603,-450.0,0.0001978,2]
[359837837,1746364243612,-450.0,0.0001978,2]
[359837839,1746364243622,-490.0,0.0001978,2]
[359837841,1746364243631,-517.29,0.0001978,2]
[359837844,1746364243641,-450.0,0.0001978,2]
[359837846,1746364243650,-450.0,0.0001978,2]
[359837848,1746364243660,-450.0,0.0001978,2]
[359837850,1746364243669,-450.0,0.0001978,2]
[359837851,1746364243678,-470.0,0.0001978,2]
[359837853,1746364243687,-450.0,0.0001978,2]
[359837856,1746364243697,-450.0,0.0001978,2]
[359837857,1746364243706,-450.0,0.0001978,2]
[359837860,1746364243721,-578.79,0.0001978,2]
[359837876,1746364243879,-450.0,0.0001978,2]
[359837879,1746364243896,-450.0,0.0001978,2]
[359837881,1746364243906,-324.37,0.0001978,2]
[359837883,1746364243915,-450.0,0.0001978,2]
[359837885,1746364243925,-157.54231077,0.0001978,2]
[359837887,1746364243934,-563.02,0.0001978,2]
[359837888,1746364243944,-450.0,0.0001978,2]
[359837890,1746364243954,-291.86,0.0001978,2]
[359837893,1746364243964,-450.0,0.0001978,2]
[359837894,1746364243974,-1359.79822887,0.0001978,2]
[359837896,1746364243983,-155.05982461,0.0001978,2]
[359837898,1746364243992,-458.06297612,0.0001978,2]
[359837900,1746364244002,-450.0,0.0001978,2]
[359837902,1746364244012,-234.36,0.0001978,2]
[359837904,1746364244021,-450.0,0.0001978,2]
[359837906,1746364244030,-450.0,0.0001978,2]
[359837908,1746364244039,-450.0,0.0001978,2]
[359837910,1746364244049,-450.0,0.0001978,2]
[359837912,1746364244058,-450.0,0.0001978,2]
[359837914,1746364244067,-837.24,0.0001978,2]
[359837916,1746364244077,-381.96,0.0001978,2]
[359837918,1746364244086,-498.76764661,0.0001978,2]
[359837920,1746364244095,-17076.95,0.0001978,2]
[359837922,1746364244105,-450.0,0.0001978,2]
[359837923,1746364244114,-989.67,0.0001978,2]
[359837924,1746364244123,-450.0,0.0001978,2]
[359837925,1746364244132,-450.0,0.0001978,2]
[359837926,1746364244141,-425.77,0.0001978,2]
[359837927,1746364244151,-3495.01,0.0001978,2]
[359837928,1746364244161,-450.0,0.0001978,2]
[359837929,1746364244170,-3141.84,0.0001978,2]
[359837930,1746364244179,-450.0,0.0001978,2]
[359837931,1746364244188,-450.0,0.0001978,2]
[359837932,1746364244198,-450.0,0.0001978,2]
[359837933,1746364244208,-450.0,0.0001978,2]
[359837934,1746364244217,-450.0,0.0001978,2]
[359837935,1746364244226,-227.96,0.0001978,2]
[359837936,1746364244236,-469.54,0.0001978,2]
[359837937,1746364244245,-526.64,0.0001978,2]
[359837938,1746364244254,-450.0,0.0001978,2]
[359837939,1746364244264,-450.0,0.0001978,2]
[359837940,1746364244274,-208.32941913,0.0001978,2]
[359837941,1746364244284,-450.0,0.0001978,2]
[359837942,1746364244293,-300.7,0.0001978,2]
[359837943,1746364244302,-450.0,0.0001978,2]
[359837944,1746364244312,-263.24,0.0001978,2]
[359837945,1746364244321,-450.0,0.0001978,2]
[359837946,1746364244331,-450.0,0.0001978,2]
[359837947,1746364244341,-450.0,0.0001978,2]
[359837948,1746364244350,-450.0,0.0001978,2]
[359837949,1746364244360,-450.0,0.0001978,2]
[359837951,1746364244369,-1249.73,0.0001978,2]
[359837953,1746364244379,-1459.52,0.0001978,2]
[359837954,1746364244388,-450.0,0.0001978,2]
[359837955,1746364244398,-217.35,0.0001978,2]
[359837956,1746364244407,-450.0,0.0001978,2]
[359837957,1746364244416,-309.74912706,0.0001978,2]
[359837958,1746364244426,-450.0,0.0001978,2]
[359837959,1746364244435,-450.0,0.0001978,2]
[359837960,1746364244444,-450.0,0.0001978,2]
[359837961,1746364244454,-450.0,0.0001978,2]
[359837962,1746364244463,-552.74,0.0001978,2]
[359837963,1746364244472,-605.91,0.0001978,2]
[359837964,1746364244482,-348.69917208,0.0001978,2]
[359837965,1746364244491,-1544.52,0.0001978,2]
[359837966,1746364244500,-260.03,0.0001978,2]
[359837967,1746364244509,-551.48,0.0001978,2]
[359837968,1746364244518,-492.61,0.0001978,2]
[359837969,1746364244528,-450.0,0.0001978,2]
[359837970,1746364244537,-450.0,0.0001978,2]
[359837971,1746364244546,-450.0,0.0001978,2]
[359837972,1746364244555,-450.0,0.0001978,2]
[359837973,1746364244564,-453.74,0.0001978,2]
[359837974,1746364244574,-450.0,0.0001978,2]
[359837975,1746364244584,-1252.4,0.0001978,2]
[359837976,1746364244593,-450.0,0.0001978,2]
[359837977,1746364244602,-450.0,0.0001978,2]
[359837978,1746364244612,-452.92,0.0001978,2]
[359837979,1746364244621,-600.62,0.0001978,2]
[359837980,1746364244631,-450.0,0.0001978,2]
[359837981,1746364244640,-1213.86,0.0001978,2]
[359837982,1746364244649,-450.0,0.0001978,2]
[359837983,1746364244659,-450.0,0.0001978,2]
[359837984,1746364244668,-450.0,0.0001978,2]
[359837985,1746364244677,-462.47,0.0001978,2]
[359837986,1746364244687,-943.37,0.0001978,2]
[359837987,1746364244696,-543.5,0.0001978,2]
[359837988,1746364244706,-450.0,0.0001978,2]
[359837989,1746364244720,-450.0,0.0001978,2]
[359837990,1746364244729,-680.88,0.0001978,2]
[359837991,1746364244739,-184.89856364,0.00019782,2]
[359837992,1746364244748,-4270.77643326,0.0001979,2]
[359837993,1746364244758,-889.1740825,0.00019799,2]
[359837994,1746364244768,-184.89856359,0.00019802,2]
[359837995,1746364244777,-500.0,0.00019807,2]
[359837996,1746364244787,-500.0,0.00019807,2]
[359837997,1746364244797,-450.0,0.00019808,2]
[359837998,1746364244806,-450.0,0.00019808,2]
[359837999,1746364244816,-450.0,0.00019808,2]
[359838000,1746364244825,-156.74,0.00019808,2]
[359838001,1746364244835,-450.0,0.00019808,2]
[359838002,1746364244844,-450.0,0.00019808,2]
[359838003,1746364244855,-450.0,0.00019808,2]
[359838004,1746364244864,-470.0,0.00019808,2]
[359838005,1746364244873,-571.67,0.00019808,2]
[359838006,1746364244883,-502.05,0.00019808,2]
[359838007,1746364244893,-450.0,0.00019808,2]
[359838008,1746364244902,-450.0,0.00019808,2]
[359838009,1746364244911,-450.0,0.00019808,2]
[359838010,1746364244921,-528.73,0.00019808,2]
[359838011,1746364244931,-509.74,0.00019808,2]
[359838012,1746364244940,-459.47,0.00019808,2]
[359838013,1746364244950,-450.0,0.00019808,2]
[359838014,1746364244959,-450.0,0.00019808,2]
[359838015,1746364244969,-430.87,0.00019808,2]
[359838016,1746364244979,-450.0,0.00019808,2]
[359838017,1746364244988,-450.0,0.00019808,2]
[359838018,1746364244998,-409.55,0.00019808,2]
[359838019,1746364245008,-528.18,0.00019808,2]
[359838020,1746364245017,-450.0,0.00019808,2]
[359838021,1746364245027,-1495.51,0.00019808,2]
[359838022,1746364245037,-450.0,0.00019808,2]
[359838023,1746364245047,-450.0,0.00019808,2]
[359838024,1746364245056,-228.41,0.00019808,2]
[359838025,1746364245066,-450.0,0.00019808,2]
[359838026,1746364245075,-250.28,0.00019808,2]
[359838027,1746364245085,-580.05,0.00019808,2]
[359838028,1746364245095,-526.29,0.00019808,2]
[359838029,1746364245104,-450.0,0.00019808,2]
[359838030,1746364245113,-450.0,0.00019808,2]
[359838031,1746364245123,-450.0,0.00019808,2]
[359838032,1746364245132,-450.0,0.00019808,2]
[359838033,1746364245142,-450.0,0.00019808,2]
[359838034,1746364245153,-450.0,0.00019808,2]
[359838035,1746364245163,-450.0,0.00019808,2]
[359838036,1746364245174,-450.0,0.00019808,2]
[359838037,1746364245184,-450.0,0.00019808,2]
[359838038,1746364245194,-450.0,0.00019808,2]
[359838039,1746364245205,-450.0,0.00019808,2]
[359838040,1746364245215,-837.24,0.00019808,2]
[359838041,1746364245224,-17076.95,0.00019808,2]
[359838042,1746364245233,-450.0,0.00019808,2]
[359838043,1746364245243,-989.67,0.00019808,2]
[359838044,1746364245252,-244.38,0.00019808,2]
[359838045,1746364245261,-450.0,0.00019808,2]
[359838046,1746364245271,-3495.01,0.00019808,2]
[359838047,1746364245280,-450.0,0.00019808,2]
[359838048,1746364245289,-3141.84,0.00019808,2]
[359838049,1746364245299,-450.0,0.00019808,2]
[359838050,1746364245308,-450.0,0.00019808,2]
[359838051,1746364245318,-450.0,0.00019808,2]
[359838052,1746364245327,-450.0,0.00019808,2]
[359838053,1746364245336,-450.0,0.00019808,2]
[359838054,1746364245346,-469.54,0.00019808,2]
[359838055,1746364245355,-450.0,0.00019808,2]
[359838056,1746364245366,-450.0,0.00019808,2]
[359838057,1746364245376,-450.0,0.00019808,2]
[359838058,1746364245387,-450.0,0.00019808,2]
[359838059,1746364245396,-450.0,0.00019808,2]
[359838060,1746364245407,-557.97,0.00019808,2]
[359838061,1746364245417,-450.0,0.00019808,2]
[359838062,1746364245426,-1249.73,0.00019808,2]
[359838063,1746364245436,-1459.52,0.00019808,2]
[359838064,1746364245446,-450.0,0.00019808,2]
[359838065,1746364245456,-450.0,0.00019808,2]
[359838066,1746364245465,-477.27,0.00019808,2]
[359838067,1746364245475,-450.0,0.00019808,2]
[359838068,1746364245485,-450.0,0.00019808,2]
[359838069,1746364245495,-450.0,0.00019808,2]
[359838070,1746364245504,-552.74,0.00019808,2]
[359838071,1746364245514,-605.91,0.00019808,2]
[359838072,1746364245524,-1544.52,0.00019808,2]
[359838073,1746364245534,-551.48,0.00019808,2]
[359838074,1746364245543,-450.0,0.00019808,2]
[359838076,1746364245553,-450.0,0.00019808,2]
[359838078,1746364245562,-450.0,0.00019808,2]
[359838079,1746364245572,-450.0,0.00019808,2]
[359838080,1746364245581,-453.74,0.00019808,2]
[359838081,1746364245591,-450.0,0.00019808,2]
[359838082,1746364245601,-1252.4,0.00019808,2]
[359838083,1746364245611,-450.0,0.00019808,2]
[359838084,1746364245620,-450.0,0.00019808,2]
[359838085,1746364245630,-600.62,0.00019808,2]
[359838086,1746364245640,-450.0,0.00019808,2]
[359838087,1746364245650,-1213.86,0.00019808,2]
[359838088,1746364245659,-450.0,0.00019808,2]
[359838089,1746364245669,-450.0,0.00019808,2]
[359838090,1746364245678,-943.37,0.00019808,2]
[359838091,1746364245687,-543.5,0.00019808,2]
[359838092,1746364245696,-450.0,0.00019808,2]
[359838093,1746364245707,-680.88,0.00019808,2]
[359838094,1746364245720,-4270.77643326,0.00019818,2]
[359838095,1746364245730,-184.89856359,0.00019821,2]
[359838096,1746364245739,-500.0,0.00019832,2]
[359838097,1746364245749,-2000.0,0.00019832,2]
[359838098,1746364245760,-200.0,0.00019832,2]
[359838099,1746364245770,-500.0,0.00019834,2]
[359838100,1746364245780,-450.0,0.00019835,2]
[359838101,1746364245791,-450.0,0.00019835,2]
[359838102,1746364245802,-450.0,0.00019835,2]
[359838103,1746364245811,-450.0,0.00019835,2]
[359838104,1746364245820,-450.0,0.00019835,2]
[359838105,1746364245831,-502.05,0.00019835,2]
[359838106,1746364245840,-450.0,0.00019835,2]
[359838107,1746364245850,-450.0,0.00019835,2]
[359838108,1746364245860,-450.0,0.00019835,2]
[359838109,1746364245869,-528.73,0.00019835,2]
[359838110,1746364245880,-509.74,0.00019835,2]
[359838111,1746364245890,-450.0,0.00019835,2]
[359838112,1746364245900,-450.0,0.00019835,2]
[359838113,1746364245909,-450.0,0.00019835,2]
[359838114,1746364245919,-340.09,0.00019835,2]
[359838115,1746364245930,-450.0,0.00019835,2]
[359838116,1746364245940,-1495.51,0.00019835,2]
[359838117,1746364245950,-298.79,0.00019835,2]
[359838118,1746364245960,-450.0,0.00019835,2]
[359838119,1746364245970,-368.88,0.00019835,2]
[359838120,1746364245980,-343.62,0.00019835,2]
[359838121,1746364245990,-450.0,0.00019835,2]
[359838122,1746364245999,-450.0,0.00019835,2]
[359838123,1746364246008,-450.0,0.00019835,2]
[359838124,1746364246018,-450.0,0.00019835,2]
[359838125,1746364246027,-554.37006051,0.00019835,2]
[359838126,1746364246037,-450.0,0.00019835,2]
[359838127,1746364246046,-450.0,0.00019835,2]
[359838128,1746364246056,-450.0,0.00019835,2]
[359838129,1746364246065,-354.18,0.00019835,2]
[359838130,1746364246075,-450.0,0.00019835,2]
[359838131,1746364246085,-837.24,0.00019835,2]
[359838132,1746364246095,-17076.95,0.00019835,2]
[359838133,1746364246105,-450.0,0.00019835,2]
[359838134,1746364246114,-989.67,0.00019835,2]
[359838135,1746364246123,-450.0,0.00019835,2]
[359838136,1746364246133,-3495.01,0.00019835,2]
[359838137,1746364246143,-450.0,0.00019835,2]
[359838138,1746364246152,-3141.84,0.00019835,2]
[359838139,1746364246162,-450.0,0.00019835,2]
[359838140,1746364246172,-450.0,0.00019835,2]
[359838141,1746364246181,-450.0,0.00019835,2]
[359838142,1746364246190,-450.0,0.00019835,2]
[359838143,1746364246200,-450.0,0.00019835,2]
[359838144,1746364246210,-469.54,0.00019835,2]
[359838145,1746364246220,-285.07273808,0.00019835,2]
[359838146,1746364246229,-450.0,0.00019835,2]
[359838147,1746364246239,-410.94,0.00019835,2]
[359838148,1746364246249,-598.99,0.00019835,2]
[359838149,1746364246259,-450.0,0.00019835,2]
[359838150,1746364246304,-450.0,0.00019835,2]
[359838151,1746364246314,-1249.73,0.00019835,2]
[359838152,1746364246323,-1459.52,0.00019835,2]
[359838153,1746364246332,-519.64,0.00019835,2]
[359838154,1746364246342,-450.0,0.00019835,2]
[359838155,1746364246351,-450.0,0.00019835,2]
[359838156,1746364246360,-450.0,0.00019835,2]
[359838157,1746364246369,-450.0,0.00019835,2]
[359838158,1746364246379,-552.74,0.00019835,2]
[359838159,1746364246388,-605.91,0.00019835,2]
[359838160,1746364246398,-1544.52,0.00019835,2]
[359838161,1746364246407,-551.48,0.00019835,2]
[359838162,1746364246416,-245.05,0.00019835,2]
[359838163,1746364246426,-450.0,0.00019835,2]
[359838164,1746364246435,-450.0,0.00019835,2]
[359838165,1746364246444,-453.74,0.00019835,2]
[359838166,1746364246454,-450.0,0.00019835,2]
[359838167,1746364246464,-1252.4,0.00019835,2]
[359838168,1746364246474,-173.06,0.00019835,2]
[359838169,1746364246483,-450.0,0.00019835,2]
[359838170,1746364246493,-600.62,0.00019835,2]
[359838171,1746364246502,-450.0,0.00019835,2]
[359838172,1746364246511,-450.0,0.00019835,2]
[359838173,1746364246520,-1213.86,0.00019835,2]
[359838174,1746364246529,-450.0,0.00019835,2]
[359838175,1746364246538,-943.37,0.00019835,2]
[359838176,1746364246547,-543.5,0.00019835,2]
[359838177,1746364246556,-450.0,0.00019835,2]
[359838178,1746364246565,-680.88,0.00019835,2]
[359838179,1746364246575,-184.89856359,0.00019841,2]
[359838180,1746364246584,-4270.77643326,0.00019845,2]
[359838181,1746364246593,-12500.0,0.00019847,2]
[359838182,1746364246602,-12500.0,0.00019847,2]
[359838183,1746364246611,-217.11897615,0.00019855,2]
[359838184,1746364246620,-12500.0,0.00019856,2]
[359838185,1746364246630,-12500.0,0.00019856,2]
[359838186,1746364246639,-184.89856359,0.00019861,2]
[359838187,1746364246648,-500.0,0.00019862,2]
[359838188,1746364246657,-310.25602455,0.00019862,2]
[359838189,1746364246667,-450.0,0.00019863,2]
[359838190,1746364246676,-500.76,0.00019863,2]
[359838191,1746364246685,-450.0,0.00019863,2]
[359838192,1746364246694,-3399.826,0.00019863,2]
[359838193,1746364246704,-450.0,0.00019863,2]
[359838194,1746364246717,-520.43,0.00019863,2]
[359838195,1746364246727,-502.05,0.00019863,2]
[359838196,1746364246736,-450.0,0.00019863,2]
[359838197,1746364246746,-450.0,0.00019863,2]
[359838198,1746364246755,-450.0,0.00019863,2]
[359838199,1746364246764,-528.73,0.00019863,2]
[359838200,1746364246773,-509.74,0.00019863,2]
[359838201,1746364246783,-384.06,0.00019863,2]
[359838202,1746364246793,-450.0,0.00019863,2]
[359838203,1746364246802,-450.0,0.00019863,2]
[359838204,1746364246812,-450.0,0.00019863,2]
[359838205,1746364246821,-1495.51,0.00019863,2]
[359838206,1746364246830,-450.0,0.00019863,2]
[359838207,1746364246839,-450.0,0.00019863,2]
[359838208,1746364246849,-595.11455112,0.00019863,2]
[359838209,1746364246859,-595.33,0.00019863,2]
[359838210,1746364246868,-450.0,0.00019863,2]
[359838211,1746364246878,-450.0,0.00019863,2]
[359838212,1746364246887,-338.35,0.00019863,2]
[359838213,1746364246896,-450.0,0.00019863,2]
[359838214,1746364246905,-450.0,0.00019863,2]
[359838215,1746364246914,-837.24,0.00019863,2]
[359838216,1746364246924,-17076.95,0.00019863,2]
[359838217,1746364246933,-450.0,0.00019863,2]
[359838218,1746364246942,-989.67,0.00019863,2]
[359838219,1746364246951,-450.0,0.00019863,2]
[359838220,1746364246960,-3495.01,0.00019863,2]
[359838221,1746364246969,-450.0,0.00019863,2]
[359838222,1746364246979,-3141.84,0.00019863,2]
[359838223,1746364246988,-450.0,0.00019863,2]
[359838224,1746364246997,-450.0,0.00019863,2]
[359838225,1746364247006,-450.0,0.00019863,2]
[359838226,1746364247015,-450.0,0.00019863,2]
[359838227,1746364247024,-469.54,0.00019863,2]
[359838228,1746364247034,-488.82,0.00019863,2]
[359838229,1746364247043,-314.22,0.00019863,2]
[359838230,1746364247052,-450.0,0.00019863,2]
[359838231,1746364247062,-1249.73,0.00019863,2]
[359838232,1746364247072,-1459.52,0.00019863,2]
[359838233,1746364247081,-461.44228444,0.00019863,2]
[359838234,1746364247090,-372.68089543,0.00019863,2]
[359838235,1746364247099,-450.0,0.00019863,2]
[359838236,1746364247108,-450.0,0.00019863,2]
[359838237,1746364247117,-552.74,0.00019863,2]
[359838238,1746364247127,-605.91,0.00019863,2]
[359838239,1746364247136,-1544.52,0.00019863,2]
[359838240,1746364247145,-551.48,0.00019863,2]
[359838241,1746364247155,-450.0,0.00019863,2]
[359838242,1746364247165,-450.0,0.00019863,2]
[359838243,1746364247175,-453.74,0.00019863,2]
[359838244,1746364247184,-178.01,0.00019863,2]
[359838245,1746364247195,-1252.4,0.00019863,2]
[359838246,1746364247204,-275.37,0.00019863,2]
[359838247,1746364247214,-600.62,0.00019863,2]
[359838248,1746364247225,-450.0,0.00019863,2]
[359838249,1746364247234,-450.0,0.00019863,2]
[359838250,1746364247244,-1213.86,0.00019863,2]
[359838251,1746364247253,-450.0,0.00019863,2]
[359838252,1746364247262,-943.37,0.00019863,2]
[359838253,1746364247272,-543.5,0.00019863,2]
[359838254,1746364247281,-450.0,0.00019863,2]
[359838255,1746364247290,-680.88,0.00019863,2]
[359838256,1746364247300,-401.2242229,0.00019864,2]
[359838257,1746364247309,-12500.0,0.00019865,2]
[359838258,1746364247319,-5816.19784907,0.00019865,2]
[359838259,1746364247525,-708.0,0.00019865,2]
[359838260,1746364247537,-607.46602351,0.00019865,2]
[359838261,1746364247554,-1374.92276963,0.00019865,2]
[359838262,1746364247707,-330.22097111,0.00019726,2]
[359838263,1746364247723,-207.61902889,0.00019726,2]
[359838264,1746364247732,-180.04706702,0.0001978,2]
[359838265,1746364247747,-269.95293298,0.0001978,2]
[359838266,1746364247758,-450.0,0.00019808,2]
[359838267,1746364247768,-450.0,0.00019835,2]
[359838268,1746364247777,-450.0,0.00019863,2]
[359838269,1746364247788,-149.66706702,0.00019865,2]
[359838270,1746364247801,-3447.51354814,0.00019865,2]
[359838271,1746364247818,-295.99920458,0.00019865,2]
[359838272,1746364247837,-100.23353805,0.00019865,2]
[359838273,1746364247847,-6063.1806559,0.00019865,2]
[359838274,1746364247858,-6436.8193441,0.00019865,2]
[359838275,1746364247868,-151.0,0.00019865,2]
[359838276,1746364247877,-151.0,0.00019865,2]
[359838277,1746364247887,-151.0,0.00019865,2]
[359838278,1746364247896,-151.0,0.00019865,2]
[359838279,1746364247905,-151.0,0.00019865,2]
[359838280,1746364247916,-152.624641,0.00019865,2]
[359838281,1746364247925,-151.0,0.00019865,2]
[359838282,1746364247935,-152.624641,0.00019865,2]
[359838283,1746364247944,-200.145016,0.00019865,2]
[359838284,1746364247954,-153.422974,0.00019865,2]
[359838285,1746364247963,-153.027909,0.00019865,2]
[359838286,1746364247972,-200.145016,0.00019865,2]
[359838287,1746364247982,-153.027909,0.00019865,2]
[359838288,1746364247991,-151.0,0.00019865,2]
[359838289,1746364248001,-259.229002,0.00019865,2]
[359838290,1746364248011,-259.229002,0.00019865,2]
[359838291,1746364248020,-872.0,0.0001987,2]
[359838292,1746364248029,-4010.0,0.0001987,2]
[359838293,1746364248038,-6759.0,0.0001987,2]
[359838294,1746364248048,-153.0,0.0001987,2]
[359838295,1746364248057,-878.0,0.0001987,2]
[359838296,1746364248066,-4270.77643326,0.00019873,2]
[359838297,1746364248076,-500.0,0.00019873,2]
[359838298,1746364248085,-500.0,0.00019873,2]
[359838299,1746364248094,-500.0,0.00019873,2]
[359838300,1746364248103,-500.0,0.00019873,2]
[359838301,1746364248113,-500.0,0.00019873,2]
[359838302,1746364248121,-500.0,0.00019873,2]
[359838303,1746364248130,-500.0,0.00019873,2]
[359838304,1746364248140,-500.0,0.00019873,2]
[359838305,1746364248149,-303.17184781,0.00019873,2]
[359838306,1746364248158,-503.01916239,0.00019873,2]
[359838307,1746364248167,-500.0,0.00019873,2]
[359838308,1746364248176,-500.0,0.00019873,2]
[359838309,1746364248185,-502.06385384,0.00019873,2]
[359838310,1746364248195,-500.0,0.00019873,2]
[359838311,1746364248204,-500.0,0.00019873,2]
[359838312,1746364248214,-500.0,0.00019873,2]
[359838313,1746364248224,-214.893,0.00019873,2]
[359838314,1746364248233,-500.0,0.00019873,2]
[359838315,1746364248244,-500.0,0.00019873,2]
[359838316,1746364248253,-500.0,0.00019873,2]
[359838317,1746364248262,-500.0,0.00019873,2]
[359838318,1746364248271,-517.4,0.00019873,2]
[359838319,1746364248281,-12500.0,0.00019874,2]
[359838320,1746364248290,-12500.0,0.00019874,2]
[359838321,1746364248299,-12500.0,0.00019874,2]
[359838322,1746364248308,-184.89856359,0.0001988,2]
[359838323,1746364248317,-155579.78298788,0.00019882,2]
[359838324,1746364248427,-470.0,0.00019726,2]
[359838325,1746364248436,-1359.79822887,0.00019808,2]
[359838326,1746364248446,-458.06297613,0.00019808,2]
[359838327,1746364248456,-924.80152804,0.00019882,2]
[359838328,1746364248467,-591.0999995,0.00019882,2]
[359838329,1746364248479,-7552.0868543,0.00019882,2]
[359838330,1746364267139,1083.91950379,0.00017016,2]
[359838331,1746364267161,117.57049621,0.00017016,2]
[359838332,1746364267366,1201.49,0.0001928,2]
[359838333,1746364341051,160.0,0.0003,32]
[359838334,1746364368281,8680.93950379,0.00018,2]
[359838335,1746364368301,10000.0,0.00018,2]
[359838336,1746364368322,10000.0,0.00018,2]